Cogmind - Beta 13 @@@ ROGUE MODE // 2024.04.18 @ 22:04:21 Player: RKyeun Result: Destroyed by as-14749 with Assembled Blade Performance ------------- Evolutions (0) 0 Regions Visited (2) 400 Robots Destroyed (11) 55 Value Destroyed (437) 437 Prototype IDs (0) 0 Alien Tech Used (0) 0 Bonus (0) 0 TOTAL SCORE: 892 Bonus ------- None Cogmind --------- Core Integrity 0/250 Matter 290/300 Energy 98/250 System Corruption 5% Temperature Warm (102) Movement Walking (120) Location -10/Mines Parts ------- > --- POWER (1) -------- Ion Engine > --- PROPULSION (2) --- Improved Aluminum Leg Improved Aluminum Leg > --- UTILITY (2) ------ Small Storage Unit > --- WEAPON (2) ------- Beam Rifle Beam Rifle > --- INVENTORY (8) ---- Ion Engine Aluminum Leg Aluminum Leg Improved Aluminum Leg Light EM Pulse Cannon Peak State ------------ > --- POWER ------------ Light Nuclear Core > --- PROPULSION ------- Improved Aluminum Leg Combat Airjet > --- UTILITY ---------- Small Storage Unit Large Battery > --- WEAPON ----------- Beam Rifle Beam Rifle > --- INVENTORY -------- Ion Engine Ion Engine Ion Engine Aluminum Leg Aluminum Leg Improved Aluminum Leg Improved Aluminum Leg Light EM Pulse Cannon [Rating: 17] Favorites ----------- Power Ion Engine Engine Ion Engine Power Core Light Nuclear Core Propulsion Improved Aluminum Leg Leg Improved Aluminum Leg Wheel Wheel Hover Unit Combat Airjet Utility Small Storage Unit Storage Small Storage Unit Processor Signal Interpreter Weapon Small Laser Energy Gun Small Laser Energy Cannon Light EM Pulse Cannon Launcher Grenade Launcher Build | -11 -10 -10 ------- Run | Yrd Mat Min Slots Evolved . | . . . Power . | . . . Propulsion . | . . . Utility . | . . . Weapon . | . . . Parts Attached 31 | 6 15 10 Power 6 | 2 2 2 Engine 5 | 2 2 1 Core 1 | . . 1 Reactor . | . . . Propulsion 10 | 2 3 5 Treads . | . . . Leg 8 | 2 2 4 Wheel 1 | . 1 . Hover 1 | . . 1 Flight . | . . . Utility 6 | . 5 1 Device . | . . . Storage 5 | . 4 1 Processor 1 | . 1 . Hackware . | . . . Protection . | . . . Artifact . | . . . Weapon 9 | 2 5 2 Energy Gun 6 | 2 2 2 Energy Cannon 2 | . 2 . Ballistic Gun . | . . . Ballistic Cannon . | . . . Launcher 1 | . 1 . Special Weapon . | . . . Impact Weapon . | . . . Slashing Weapon . | . . . Piercing Weapon . | . . . Special Melee Weapon . | . . . Unidentified Prototypes . | . . . Parts Lost 4 | . . 4 Power 1 | . . 1 Propulsion 1 | . . 1 Utility 1 | . . 1 Weapon 1 | . . 1 Highest Loss Streak 2 | . . 2 To Critical Strikes . | . . . Average Slot Usage (%) 97 | . 97 98 Engine 9 | . 13 5 Core 3 | . . 8 Leg 27 | . 27 27 Storage 25 | . 24 26 Processor 1 | . 1 1 Energy Gun 15 | . 13 18 Energy Cannon 11 | . 13 8 Naked Turns . | . . . Heaviest Build 27 | 7 27 21 Greatest Support 26 | 20 26 26 Greatest Overweight (x) 1 | . 1 1 Average Overweight (x) . | . . . Largest Inventory Capacity 15 | 5 15 8 Average Capacity 7 | 5 7 8 Most Carried 8 | 5 8 8 Average Carried 6 | 3 6 6 Final Capacity 8 | 5 8 8 Final Carried 7 | 5 7 5 Class Distribution -------------------- 100% | Mutant Dominant Class ---------------- Mutant | -10/Materials Mutant | -10/Mines Resources | -11 -10 -10 ----------- Run | Yrd Mat Min Matter Collected 525 | 260 118 147 Remotely . | . . . Salvage Created 559 | 45 182 332 Parts 22 | 2 9 11 Haulers Intercepted . | . . . Recyclers Shooed . | . . . Parts Field Recycled . | . . . Retrieved Matter . | . . . Parts Self-Destructed . | . . . Prevented . | . . . Kills | -11 -10 -10 ------- Run | Yrd Mat Min Combat Hostiles Destroyed 17 | 1 4 12 Guns 6 | 1 . 5 Cannons 6 | . 2 4 AOE 5 | . 2 3 Classes Destroyed 4 | 1 1 2 Watcher 1 | . 1 . Grunt 9 | 1 4 4 Demolisher 1 | . . 1 Assembled 7 | . . 7 Best Kill Streak 6 | 1 3 6 Combat Bots Only 6 | 1 2 6 Max Kills in Single Turn 2 | 1 1 2 Gunslinging . | . . . Exploded 2 | . 1 2 Melee . | . . . Uniques/NPCs Destroyed . | . . . Combat | -11 -10 -10 -------- Run | Yrd Mat Min Hostile Shots Fired 73 | 8 20 45 Missed 15 | 1 7 7 Damage Taken 1031 | 77 182 772 Core 264 | 22 54 188 Absorbed by Shields . | . . . Core Remaining (%) 91 | 91 . . Volleys Fired 42 | 5 13 24 Largest 2 | 2 2 2 Hottest 112 | 80 112 112 Shots Fired 84 | 10 26 48 Gun 48 | 10 9 29 Cannon 33 | . 14 19 Launcher 3 | . 3 . Special . | . . . Kinetic . | . . . Thermal 48 | 10 9 29 Explosive 3 | . 3 . Electromagnetic 33 | . 14 19 Robot Hit Streak 6 | 1 6 5 Robot Miss Streak 5 | 3 5 3 Penetration Max . | . . . Secondary Targets 1 | . . 1 Max Gunslinging Chain 1 | . . 1 Shots Hit Robots 43 | 2 10 31 Core Hits 32 | 2 7 23 Critical Kills . | . . . Critical Parts Destroyed . | . . . Critical Strikes 4 | . . 4 Burn 4 | . . 4 Melee Attacks . | . . . Impact . | . . . Slashing . | . . . Piercing . | . . . Sneak Attacks . | . . . Combat Hostiles . | . . . Follow-up Attacks . | . . . Damage Inflicted 1099 | 22 388 689 Guns 306 | 22 24 260 Cannons 425 | . 137 288 Explosions 368 | . 227 141 Melee . | . . . Ramming . | . . . Kinetic . | . . . Thermal 512 | 22 89 401 Explosive 162 | . 162 . Electromagnetic 425 | . 137 288 Impact . | . . . Slashing . | . . . Piercing . | . . . Highest Corruption 5 | . . 5 Average Corruption 5 | . . 5 Corruption Purged . | . . . Corruption Blocked . | . . . Overload Shots . | . . . Overflow Damage . | . . . Projectiles . | . . . Explosions . | . . . Melee . | . . . Knockbacks . | . . . Impact . | . . . Kinetic . | . . . Secondary . | . . . Self-Inflicted Damage . | . . . Shots . | . . . Rammed . | . . . Targets Rammed 1 | 1 . . Kicked 1 | 1 . . Crushed . | . . . Highest Temperature 315 | 78 171 315 Average Temperature 89 | 34 49 116 Received Heat Transfer 264 | 42 126 96 Siege Activations . | . . . Robots Corrupted . | . . . Combat Hostiles . | . . . Parts Fried 1 | . . 1 Impact Corruptions . | . . . Robots Melted . | . . . Combat Hostiles . | . . . Parts Melted . | . . . Heat Transferred 1262 | 50 100 1112 Parts Sabotaged . | . . . Parts Stolen . | . . . Parts Stripped . | . . . Power Chain Reactions 3 | . 1 2 Alert | -11 -10 -10 ------- Run | Yrd Mat Min Peak Influence 195 | 21 195 128 Initial 13 | . 13 7 Average 77 | 10 92 99 Maximum Alert Level . | . . . Low Security (%) 100 | 100 100 100 Level 1 . | . . . Level 2 . | . . . Level 3 . | . . . Level 4 . | . . . Level 5 . | . . . High Security . | . . . Max Security . | . . . Squads Dispatched 1 | . 1 . Investigation . | . . . Extermination . | . . . Reinforcement 1 | . 1 . Assault . | . . . Garrison . | . . . Intercept . | . . . Searches Triggered . | . . . Construction Impeded . | . . . Haulers Reinforced . | . . . Active Scanning Responses . | . . . Cargo Convoy Interrupts . | . . . Stealth | -11 -10 -10 --------- Run | Yrd Mat Min Distress Signals . | . . . Communications Jammed . | . . . Distress Signals . | . . . Times Spotted 25 | 1 9 15 Peak Tracking Total 4 | 1 3 4 Tactical Retreats 1 | . . 1 Traps | -11 -10 -10 ------- Run | Yrd Mat Min Traps Triggered . | . . . Indirectly . | . . . Trap Hack Attempts . | . . . Triggered . | . . . Disarmed . | . . . Reprogrammed 10 | . 10 . Reused . | . . . Traps Extracted . | . . . Installed . | . . . Triggered . | . . . Machines | -11 -10 -10 ---------- Run | Yrd Mat Min Machines Disabled 2 | . 1 1 Max in Single Turn 1 | . 1 1 Machines Repaired . | . . . Machines Dismantled . | . . . Machines Sabotaged . | . . . Overloaded Fab Kills . | . . . Hacking | -11 -10 -10 --------- Run | Yrd Mat Min Machines Accessed 1 | . 1 . Terminals 1 | . 1 . Fabricators . | . . . Repair Stations . | . . . Recycling Units . | . . . Scanalyzers . | . . . Garrison Access . | . . . Total Hacks 6 | . 6 . Successful 5 | . 5 . Failed 1 | . 1 . Catastrophic . | . . . Database Lockouts . | . . . Manual . | . . . Terminals 6 | . 6 . Fabricators . | . . . Repair Stations . | . . . Recycling Units . | . . . Scanalyzers . | . . . Garrison Access . | . . . Terminal Hacks 5 | . 5 . Record 1 | . 1 . Alert Level 1 | . 1 . Locate Traps 1 | . 1 . Reprogram Traps 2 | . 2 . Fabricator Hacks . | . . . Repair Station Hacks . | . . . Recycling Unit Hacks . | . . . Scanalyzer . | . . . Garrison Access Hacks . | . . . Unauthorized Hacks . | . . . Terminals . | . . . Fabricators . | . . . Repair Stations . | . . . Recycling Units . | . . . Scanalyzers . | . . . Garrison Access . | . . . Data Cores Recovered . | . . . Used . | . . . Hacking Detections 1 | . 1 . Full Trace Events 1 | . 1 . Feedback Events . | . . . Feedback Blocked . | . . . Robot Schematics Acquired . | . . . Robots Built . | . . . Authchips . | . . . Time . | . . . Total Robot Build Rating . | . . . Part Schematics Acquired . | . . . Parts Built . | . . . Authchips . | . . . Time . | . . . Total Part Build Rating . | . . . Parts Repaired . | . . . Time . | . . . Parts Recycled . | . . . Recycled Matter . | . . . Retrieved Matter . | . . . Retrieved Components . | . . . Parts Scanalyzed . | . . . Part Schematics Acquired . | . . . Parts Damaged . | . . . Bothacking | -11 -10 -10 ------------ Run | Yrd Mat Min Used RIF Installer . | . . . Robots Hacked . | . . . Non-combat . | . . . Combat . | . . . Robot Hacks Applied . | . . . Relay Couplers Released . | . . . Fabnet Peak Effective % . | . . . Robots Rewired . | . . . Allies Hacked . | . . . Hacks Repelled . | . . . Allies | -11 -10 -10 -------- Run | Yrd Mat Min Total Allies 2 | . . 2 Largest Group 2 | . . 2 Highest-Rated Group 49 | . . 49 Highest-Rated Ally 31 | . . 31 Total Orders . | . . . Ally Attacks 2 | . . 2 Total Damage 42 | . . 42 Kills . | . . . Allies Corrupted . | . . . Allies Melted . | . . . Intel | -11 -10 -10 ------- Run | Yrd Mat Min Robot Analysis Total . | . . . Derelict Logs Recovered . | . . . Drone Launches . | . . . Drone Recoveries . | . . . Exploration | -11 -10 -10 ------------- Run | Yrd Mat Min Turns Passed 948 | 204 414 330 Spaces Moved 610 | 152 271 187 Core 15 | 15 . . Treads . | . . . Legs 595 | 137 271 187 Wheels . | . . . Hover . | . . . Flight . | . . . Fastest Speed 50 | 50 120 120 Average Speed 120 | 113 120 127 Slowest Speed 190 | 120 190 190 Overloaded Moves . | . . . Propulsion Burnouts . | . . . Robots Hopped . | . . . Cave-ins Triggered . | . . . Exploration Rate (%) 20 | 9 34 18 Regions Visited 2 Branch Regions 1 Pre-discovered Areas . | . . . Known Exits Taken 1 | . 1 . Unknown Exits Taken 1 | 1 . . Scrap Searched 1 | . . 1 Spaces Dug . | . . . Terrain Destroyed 27 | . 13 14 Melee . | . . . Projectile . | . . . AOE 27 | . 13 14 Terrain Rammed . | . . . Walls Destroyed . | . . . Machines Disabled . | . . . Actions | -11 -10 -10 --------- Run | Yrd Mat Min Total 742 | 173 339 230 Wait 4 | . 4 . Move 608 | 151 270 187 Hop . | . . . Pick Up 34 | 10 19 5 Fast Attach 1 | . 1 . Attach 19 | 5 10 4 Detach 1 | . 1 . Swap 11 | 1 4 6 Drop 21 | . 17 4 Fire 42 | 5 13 24 Melee . | . . . Ram . | . . . Kick 1 | 1 . . Crush . | . . . Escape Stasis . | . . . Rewire . | . . . Trap . | . . . Miscellaneous . | . . . Route ------- -11/Scrapyard -10/Materials (discovered 2 exits: *Min x2) -10/Mines History --------- Turn | Location | Event 2 | -11/Scrapyard | Met Revision 17 74 | -11/Scrapyard | Discovered new exit (range 8) 205 | -11/Scrapyard | Entered Materials 317 | -10/Materials | Build established: Mutant 513 | -10/Materials | Discovered new exit (range 16) 588 | -10/Materials | Discovered new exit (range 12) 618 | -10/Materials | Identified exit to Mines 619 | -10/Materials | Entered Mines 672 | -10/Mines | Assembled infested the area 897 | -10/Mines | Core integrity fell below 50% 949 | -10/Mines | Core integrity fell below 20% 949 | -10/Mines | Destroyed by as-14749 with Assembled Blade Last Messages --------------- Acquired 30 matter. U-05 Engineer lays Concrete. U-05 Engineer builds a Wall. as-11706 destroyed. U-05 Engineer builds a Wall. K-01 Serf collects debris. Dropped Ion Engine. Ion Engine crushed and broken. U-05 Engineer builds a Wall. K-01 Serf collects debris. as-14749 sneak attacks. K-01 Serf destroyed. as-78308 suffers critical hit (Burn). Lrg. Battery destroyed. System corrupted by crushing effect (+5). as-78308 destroyed. Switching to secondary target: as-14749. Lgt. Nuclear Core destroyed. as-70547 suffers critical hit (Burn). [Achievement: First Step to Greatness] Map ----- +----------------------------------------------------+ | ?????????????????????????????????????????????????? | | ?????????????????????????????????????????????????? | | ?????????????????????????????????????????????????? | | ?????????????????????????????????????????????????? | | ?????????????????????????????????????????????????? | | ?????????????????????????????????????????????????? | | ?????????????????????????????????????????????????? | | ?????????????????????????????????????????????????? | | ?????????????????????????????????????????????????? | | ?????????????????????????????????????????????????? | | ?????????????????????????????????????????????????? | | ?????????????????????????????????????????????????? | | ?????????????????????????????????????????????????? | | ?????????????????????????????????????????????????? | | ?????????????????????????????????????????????????? | | ?????????????????????????????????????????????????? | | ?????????????????????????????????????????????????? | | ?????????????????????????????????????????????????? | | ?????????????????????????????????????????????????? | | ?????????????????????????????????????????????????? | | ????????????????????????###??????????????????????? | | ???????????????????????? #??????????????????????? | | ????????????????????????# #???????###??####???? | | ????????????????????????#a#???????# ### ##### ?? | | ????????????????????????#a#???###### ???? | | ????????????????????????#@#?###|########%###??? | | ????????????????????????#a### !==###=!%%=# #? | | ????????????????????????# %%=%%=%%%%=# ## | | ????????????????????????##### =#*###%%# #?? | | ????????????????????????????#####!!#==# ##?? | | ????????????????????????????????####*=### #??? | | ?????????????????????????????????###!!#### ##??? | | ???????????????????????????????????#|%##??# ##???? | | ??????????????????????????????????## %##???##????? | | ??????????????????????????????????## ]##?????????? | | ??????????????????????????????????#"%[##?????????? | | ??????????????????????????????????#"= ##?????????? | | ??????????????????????????????????##% "##????????? | | ??????????????????????????????????## ##???????? | | ?????????????????????????????????## %! #???????? | | ?????????????????????????????##### #???????? | | ?????????????????????????????# #???????? | | ?????????????????????????????# ## #?????### | | ?????????????????????????????# ## #????## | | ????????????????????########## ### #????# | | ????????????????????# %% #?### ###### | | ????????????????????# ##########???## | | ????????????????????# #?????????????## ######### | | ????????????????????# #??????????????####???????## | | ??????????????????### #####??????????????????????? | +----------------------------------------------------+ Best States ------------- Heat Dissipation 25 Energy Generation 14 Energy Capacity 450 Matter Stores 300 Matter Capacity 300 Sight Range 16 Terrain Scan Density 10 Evasion (%) 55 Item Schematics ----------------- None Robot Schematics ------------------ None Fabricated ------------ Nothing Alien Tech Used ----------------- None Achievements -------------- First Step to Greatness Storm Trooper Uninvited Guest Challenges ------------ None Game ------ Seed LinearLightpackMallet Manual? 0 Play Time 00:39:50 Cumulative 0.6 hours Start 2024.04.18 @ 21:14:29 End 2024.04.18 @ 22:04:21 Sessions 1 Manual Loads 0 Difficulty Rogue Special Mode None Game No. 1 Rogue 1 Adventurer 0 Explorer 0 Win Type - Total 0 Types 0/0/0/0/0/0/0/0/0 Lore% 0 Gallery% 1 Achievement% 1 Wizard Run 0 Options --------- Layout 1 ASCII 0 Keyboard 0 Movement Mouse Keybinds 0 Fullscreen 1 Font 24/Smallcaps Map View 50x35 Zoom Use 0% Tactical HUD 0 Map Filters NONE Filters NONE Steam 0 RUN: 8b03a605-35e6-487a-a961-b940218b5f01